fUST/lending_fUST_20240501
["ID","MTS","AMOUNT","RATE_DAILY","PERIOD"]
[325057088,1714510162286,-305.59553593,0.00019178,2]
[325057089,1714510162304,-172.78089644,0.00019178,2]
[325057090,1714510162323,-290.81573475,0.00019178,2]
[325057091,1714510162342,-500.0,0.00019178,2]
[325057092,1714510162361,-192.49,0.0001989,3]
[325057093,1714510162380,-13408.40332269,0.000199,2]
[325057094,1714510162398,-7932.17089947,0.00019978,2]
[325057095,1714510162417,-154.96887633,0.00019998,2]
[325057096,1714510162436,-521.34665034,0.00019998,2]
[325057097,1714510162456,-193.53770811,0.00019998,2]
[325057098,1714510162476,-154.92246147,0.00019998,2]
[325057099,1714510162494,-154.95340574,0.00019998,2]
[325057100,1714510162514,-207.81813818,0.00019998,2]
[325057101,1714510162534,-154.82967499,0.00019998,2]
[325057102,1714510162553,-883.9212987,0.00019998,2]
[325057103,1714510162572,-157.82553701,0.00019998,2]
[325057104,1714510162591,-412.10241037,0.00019998,2]
[325057105,1714510162610,-191.36833454,0.00019998,2]
[325057106,1714510162629,-206.09782636,0.00019998,2]
[325057107,1714510162649,-472.23630873,0.00019998,2]
[325057108,1714510162671,-155.10438064,0.00019998,2]
[325057109,1714510162691,-172.51214037,0.00019998,2]
[325057110,1714510162711,-155.03633668,0.00019998,2]
[325057111,1714510162730,-154.87609912,0.00019998,2]
[325057112,1714510162750,-155.65981107,0.00019998,2]
[325057113,1714510162770,-1490.54643083,0.00019998,2]
[325057114,1714510162789,-155.10726606,0.00019998,2]
[325057115,1714510162807,-162.07976976,0.00019998,2]
[325057116,1714510162826,-1201.83215556,0.00019998,2]
[325057117,1714510162846,-307.86996229,0.00019998,2]
[325057118,1714510162865,-1091.30429574,0.00019998,2]
[325057119,1714510162886,-154.89155736,0.00019998,2]
[325057120,1714510162906,-212.02541906,0.00019998,2]
[325057121,1714510162925,-718.44665129,0.00019998,2]
[325057122,1714510162945,-603.65268039,0.00019998,2]
[325057123,1714510162964,-354.34902295,0.00019998,2]
[325057124,1714510162984,-4312.85206369,0.00019999,2]
[325057125,1714510163003,-392.45731966,0.00019999,2]
[325057126,1714510163024,-2233.19657254,0.0002,2]
[325057127,1714510163154,-50058.62299554,0.0002,2]
[325057128,1714510163175,-384.98,0.0002126,3]
[325057129,1714510163198,-335.89456436,0.0002169,2]
[325057130,1714510163218,-720.39755647,0.0002179,2]
[325057131,1714510163239,-166.666666,0.00021918,2]
[325057132,1714510163261,-166.666666,0.00022431,2]
[325057133,1714510163281,-533.598032,0.00022466,2]
[325057134,1714510163300,-166.165195,0.00022466,2]
[325057135,1714510163319,-166.666666,0.00022944,2]
[325057136,1714510163338,-714.17223552,0.00023,2]
[325057137,1714510163358,-166.666666,0.00023456,2]
[325057138,1714510163378,-160.571437,0.000239,2]
[325057139,1714510163398,-166.666666,0.00023969,2]
[325057140,1714510163417,-989.91268434,0.00024,2]
[325057141,1714510163436,-166.666666,0.00024046,2]
[325057142,1714510163455,-335.89456436,0.00024462,2]
[325057143,1714510163474,-166.666666,0.00024482,2]
[325057144,1714510163493,-562.61462862,0.00024657,2]
[325057145,1714510163516,-1076.95072509,0.0002516,2]
[325057146,1714510163537,-720.39755647,0.00025337,2]
[325057147,1714510163558,-620.12167506,0.00026041,2]
[325057148,1714510163577,-160.0,0.000271,2]
[325057149,1714510163599,-620.00608375,0.00027343,2]
[325057150,1714510163622,-586.102458,0.00027516,2]
[325057151,1714510163642,-160.0,0.00027648,2]
[325057152,1714510163664,-533.598032,0.00028493,2]
[325057153,1714510163695,335.89456436,0.00027233,2]
[325057154,1714510164152,154.89258565,0.0002,2]
[325057155,1714510165891,2101.40475036,0.00020913,2]
[325057156,1714510171953,1311.35206162,0.00020913,2]
[325057157,1714510172313,31984.3865482,0.00020913,2]
[325057158,1714510172333,35441.81204558,0.00020913,2]
[325057159,1714510172357,889.4230239,0.00020913,2]
[325057160,1714510173301,549.71527051,0.00020913,2]
[325057161,1714510176222,1334.20294994,0.000189,2]
[325057162,1714510176404,1334.20294994,0.000239,2]
[325057164,1714510199464,329.99389325,0.0002,2]
[325057166,1714510206843,624.13404713,0.00023684,2]
[325057167,1714510207967,620.20670236,0.00024868,2]
[325057169,1714510209148,620.01033512,0.00026112,2]
[325057170,1714510210992,241.71320654,0.0002,2]
[325057256,1714510231840,-720.39755647,0.00028883,4]
[325057258,1714510231850,-942.1730376,0.00028892,2]
[325057260,1714510231860,-1334.20294994,0.000289,2]
[325057262,1714510231869,-1449.6,0.00029667,5]
[325057264,1714510231879,-335.89456436,0.00030005,2]
[325057266,1714510231888,-1449.6,0.00030552,7]
[325057268,1714510231897,-1449.6,0.00031437,7]
[325057270,1714510231906,-318.46858501,0.00031678,2]
[325057272,1714510231917,-577.47,0.0003177,3]
[325057274,1714510231926,-3705.54,0.0003177,3]
[325057276,1714510231936,-7066.22,0.0003177,3]
[325057278,1714510231946,-5888.52,0.0003177,3]
[325057280,1714510231955,-212.54437456,0.00031778,4]
[325057282,1714510231964,-471.50611698,0.00031778,4]
[325057284,1714510231973,-2625.35839845,0.00031778,4]
[325057286,1714510231982,-739.31670762,0.00031778,4]
[325057288,1714510231991,-1890.65321071,0.00031778,4]
[325057290,1714510232001,-959.5404316,0.00031778,2]
[325057292,1714510232010,-989.91268434,0.00031778,4]
[325057294,1714510232019,-267.39463091,0.00031778,4]
[325057296,1714510232029,-302.62414452,0.00031778,4]
[325057298,1714510232038,-154.76784823,0.00031778,2]
[325057300,1714510232048,-329.86863425,0.00031778,4]
[325057302,1714510232058,-241.6470421,0.00031778,4]
[325057304,1714510232068,-956.58057589,0.00031779,2]
[325057306,1714510232077,-6003.47225012,0.00031779,4]
[325057309,1714510232088,-274.65022529,0.00031779,4]
[325057311,1714510232099,-557.24588747,0.00031779,4]
[325057313,1714510232110,-907.44942013,0.00031779,4]
[325057315,1714510232121,-4454.62471096,0.00031779,4]
[325057317,1714510232130,-500.0,0.0003178,2]
[325057319,1714510232139,-544.19858094,0.0003178,2]
[325057321,1714510232148,-500.0,0.0003178,2]
[325057322,1714510232158,-500.0,0.0003178,2]
[325057324,1714510232167,-500.0,0.0003178,2]
[325057326,1714510232177,-500.0,0.0003178,2]
[325057328,1714510232186,-500.0,0.0003178,2]
[325057330,1714510232195,-500.0,0.0003178,2]
[325057332,1714510232204,-151.42629261,0.0003178,2]
[325057334,1714510232213,-500.0,0.0003178,2]
[325057336,1714510232222,-500.0,0.0003178,2]
[325057337,1714510232231,-500.0,0.0003178,2]
[325057339,1714510232241,-500.0,0.0003178,2]
[325057341,1714510232251,-500.0,0.0003178,2]
[325057353,1714510232368,-500.0,0.0003178,2]
[325057355,1714510232378,-185.3645537,0.0003178,2]
[325057357,1714510232387,-500.0,0.0003178,2]
[325057359,1714510232396,-500.0,0.0003178,2]
[325057360,1714510232406,-500.0,0.0003178,2]
[325057362,1714510232415,-500.0,0.0003178,2]
[325057364,1714510232425,-500.0,0.0003178,2]
[325057366,1714510232434,-500.0,0.0003178,2]
[325057368,1714510232443,-500.0,0.0003178,2]
[325057370,1714510232453,-500.0,0.0003178,2]
[325057372,1714510232462,-500.0,0.0003178,2]
[325057373,1714510232472,-500.0,0.0003178,2]
[325057374,1714510232482,-500.0,0.0003178,2]
[325057375,1714510232491,-500.0,0.0003178,2]
[325057376,1714510232500,-500.0,0.0003178,2]
[325057377,1714510232509,-500.0,0.0003178,2]
[325057378,1714510232519,-500.0,0.0003178,2]
[325057380,1714510232528,-500.0,0.0003178,2]
[325057382,1714510232536,-500.0,0.0003178,2]
[325057384,1714510232545,-500.0,0.0003178,2]
[325057385,1714510232554,-500.0,0.0003178,2]
[325057387,1714510232564,-500.0,0.0003178,2]
[325057390,1714510232574,-500.0,0.0003178,2]
[325057392,1714510232584,-500.0,0.0003178,2]
[325057393,1714510232593,-500.0,0.0003178,2]
[325057395,1714510232602,-310.88646768,0.0003178,2]
[325057398,1714510232614,-189.11353232,0.0003178,2]
[325057400,1714510232623,-327.09414402,0.0003178,2]
[325057402,1714510232634,-172.90585598,0.0003178,2]
[325057404,1714510232643,-509.86556274,0.0003178,2]
[325057406,1714510232652,-500.0,0.0003178,2]
[325057408,1714510232662,-91.93234424,0.0003178,2]
[325057410,1714510232673,-408.06765576,0.0003178,2]
[325057412,1714510232683,-500.0,0.0003178,2]
[325057414,1714510232695,-500.0,0.0003178,2]
[325057416,1714510232704,-441.93234424,0.0003178,2]
[325057965,1714510237848,-460.92512363,0.00030004,4]
[325057967,1714510237858,-358.98357503,0.0003168,2]
[325057969,1714510237867,-4907.1,0.0003177,3]
[325057971,1714510237877,-466.46616223,0.00031778,4]
[325057973,1714510237886,-10743.00547989,0.00031778,4]
[325057975,1714510237896,-58.06765576,0.0003178,2]
[325057977,1714510237905,-500.0,0.0003178,2]
[325057979,1714510237916,-500.0,0.0003178,2]
[325057982,1714510237925,-500.0,0.0003178,2]
[325057984,1714510237935,-500.0,0.0003178,2]
[325057986,1714510237944,-500.0,0.0003178,2]
[325057988,1714510237954,-500.0,0.0003178,2]
[325057990,1714510237964,-500.0,0.0003178,2]
[325057992,1714510237973,-500.0,0.0003178,2]
[325057993,1714510237983,-500.0,0.0003178,2]
[325057995,1714510237993,-500.0,0.0003178,2]
[325057997,1714510238002,-500.0,0.0003178,2]
[325057998,1714510238012,-500.0,0.0003178,2]
[325057999,1714510238021,-500.0,0.0003178,2]
[325058001,1714510238031,-500.0,0.0003178,2]
[325058003,1714510238041,-500.0,0.0003178,2]
[325058005,1714510238051,-500.0,0.0003178,2]
[325058007,1714510238061,-500.0,0.0003178,2]
[325058009,1714510238071,-500.0,0.0003178,2]
[325058011,1714510238082,-500.0,0.0003178,2]
[325058013,1714510238092,-500.0,0.0003178,2]
[325058015,1714510238101,-500.0,0.0003178,2]
[325058016,1714510238110,-605.64755963,0.0003178,2]
[325058017,1714510238120,-505.58052656,0.0003178,2]
[325058018,1714510238130,-500.0,0.0003178,2]
[325058019,1714510238140,-500.0,0.0003178,2]
[325058020,1714510238149,-500.0,0.0003178,2]
[325058021,1714510238158,-500.0,0.0003178,2]
[325058022,1714510238168,-500.0,0.0003178,2]
[325058023,1714510238178,-541.08982709,0.0003178,2]
[325058024,1714510238187,-428.95152644,0.0003178,2]
[325058025,1714510238196,-505.92282344,0.0003178,2]
[325058026,1714510238206,-500.0,0.0003178,2]
[325058027,1714510238216,-500.0,0.0003178,2]
[325058028,1714510238225,-500.0,0.0003178,2]
[325058030,1714510238235,-500.0,0.0003178,2]
[325058032,1714510238243,-500.0,0.0003178,2]
[325058034,1714510238252,-500.0,0.0003178,2]
[325058036,1714510238262,-500.0,0.0003178,2]
[325058038,1714510238271,-500.0,0.0003178,2]
[325058040,1714510238281,-500.0,0.0003178,2]
[325058042,1714510238290,-500.0,0.0003178,2]
[325058044,1714510238299,-500.0,0.0003178,2]
[325058046,1714510238309,-500.0,0.0003178,2]
[325058048,1714510238319,-500.0,0.0003178,2]
[325058050,1714510238328,-500.0,0.0003178,2]
[325058052,1714510238337,-500.0,0.0003178,2]
[325058054,1714510238346,-500.0,0.0003178,2]
[325058056,1714510238355,-500.0,0.0003178,2]
[325058058,1714510238364,-500.0,0.0003178,2]
[325058060,1714510238373,-566.94421964,0.0003178,2]
[325058061,1714510238382,-500.0,0.0003178,2]
[325058063,1714510238391,-500.0,0.0003178,2]
[325058065,1714510238401,-169.71608019,0.0003178,2]
[325058068,1714510238410,-500.0,0.0003178,2]
[325058069,1714510238419,-500.0,0.0003178,2]
[325058071,1714510238428,-500.0,0.0003178,2]
[325058073,1714510238437,-499.14764595,0.0003178,2]
[325058075,1714510238446,-500.0,0.0003178,2]
[325058078,1714510238455,-500.0,0.0003178,2]
[325058080,1714510238465,-500.0,0.0003178,2]
[325058081,1714510238474,-500.0,0.0003178,2]
[325058083,1714510238483,-500.0,0.0003178,2]
[325058086,1714510238492,-599.02365329,0.0003178,2]
[325058087,1714510238502,-500.0,0.0003178,2]
[325058089,1714510238511,-500.0,0.0003178,2]
[325058091,1714510238520,-500.0,0.0003178,2]
[325058093,1714510238529,-500.0,0.0003178,2]
[325058095,1714510238539,-500.0,0.0003178,2]
[325058097,1714510238547,-118.99567809,0.0003178,2]
[325058099,1714510238560,-381.00432191,0.0003178,2]
[325058101,1714510238570,-122.67767809,0.0003178,2]
[325058104,1714510238584,-377.32232191,0.0003178,2]
[325058106,1714510238594,-500.0,0.0003178,2]
[325058108,1714510238602,-500.0,0.0003178,2]
[325058110,1714510238611,-500.0,0.0003178,2]
[325058112,1714510238621,-500.0,0.0003178,2]
[325058114,1714510238630,-500.0,0.0003178,2]
[325058116,1714510238639,-500.0,0.0003178,2]
[325058118,1714510238648,-500.0,0.0003178,2]
[325058120,1714510238657,-500.0,0.0003178,2]
[325058122,1714510238665,-500.0,0.0003178,2]
[325058124,1714510238674,-217.46866619,0.0003178,2]
[325058125,1714510238684,-500.0,0.0003178,2]
[325058128,1714510238697,-500.0,0.0003178,2]
[325058129,1714510238707,-520.3609854,0.0003178,2]
[325058131,1714510238715,-500.0,0.0003178,2]
[325058133,1714510238724,-500.0,0.0003178,2]
[325058135,1714510238734,-500.0,0.0003178,2]
[325058137,1714510238744,-500.0,0.0003178,2]
[325058139,1714510238753,-500.0,0.0003178,2]
[325058141,1714510238762,-500.0,0.0003178,2]
[325058143,1714510238774,-500.0,0.0003178,2]
[325058146,1714510238785,-500.0,0.0003178,2]
[325058147,1714510238794,-500.0,0.0003178,2]
[325058149,1714510238803,-300.0,0.0003178,2]
[325058151,1714510238812,-500.0,0.0003178,2]
[325058153,1714510238823,-309.59752322,0.0003178,2]
[325058156,1714510238832,-500.0,0.0003178,2]
[325058158,1714510238841,-500.0,0.0003178,2]
[325058159,1714510238850,-500.0,0.0003178,2]
[325058161,1714510238860,-500.0,0.0003178,2]
[325058164,1714510238869,-500.0,0.0003178,2]
[325058166,1714510238878,-501.66,0.0003178,2]
[325058167,1714510238887,-500.0,0.0003178,2]
[325058169,1714510238897,-500.0,0.0003178,2]
[325058172,1714510238907,-500.0,0.0003178,2]
[325058174,1714510238918,-500.0,0.0003178,2]
[325058175,1714510238928,-500.0,0.0003178,2]
[325058177,1714510238938,-500.0,0.0003178,2]
[325058179,1714510238947,-500.0,0.0003178,2]
[325058181,1714510238956,-500.0,0.0003178,2]
[325058183,1714510238966,-563.7907963,0.0003178,2]
[325058185,1714510238976,-526.1433345,0.0003178,2]
[325058188,1714510238986,-500.0,0.0003178,2]
[325058190,1714510238996,-500.0,0.0003178,2]
[325058192,1714510239005,-500.0,0.0003178,2]
[325058194,1714510239015,-500.0,0.0003178,30]
[325058196,1714510239025,-500.0,0.0003178,2]
[325058197,1714510239034,-500.0,0.0003178,2]
[325058199,1714510239044,-291.81578745,0.0003178,2]
[325058201,1714510239053,-510.76687985,0.0003178,2]
[325058203,1714510239063,-500.0,0.0003178,2]
[325058217,1714510239173,-500.0,0.0003178,2]
[325058220,1714510239184,-500.0,0.0003178,2]
[325058222,1714510239193,-500.0,0.0003178,2]
[325058224,1714510239203,-500.0,0.0003178,2]
[325058226,1714510239212,-500.0,0.0003178,2]
[325058228,1714510239222,-500.0,0.0003178,2]
[325058230,1714510239231,-500.0,0.0003178,2]
[325058232,1714510239240,-500.0,0.0003178,2]
[325058234,1714510239249,-500.0,0.0003178,2]
[325058235,1714510239258,-501.91101599,0.0003178,2]
[325058237,1714510239267,-500.0,0.0003178,2]
[325058240,1714510239276,-500.0,0.0003178,2]
[325058242,1714510239286,-501.24596674,0.0003178,2]
[325058244,1714510239295,-500.0,0.0003178,2]
[325058246,1714510239304,-500.0,0.0003178,2]
[325058250,1714510239314,-500.0,0.0003178,2]
[325058252,1714510239323,-1000.0,0.0003178,2]
[325058254,1714510239333,-500.0,0.0003178,2]
[325058256,1714510239342,-500.0,0.0003178,2]
[325058259,1714510239351,-500.0,0.0003178,2]
[325058261,1714510239361,-500.0,0.0003178,2]
[325058263,1714510239370,-500.0,0.0003178,2]
[325058265,1714510239379,-601.0651819,0.0003178,2]
[325058268,1714510239389,-500.0,0.0003178,2]
[325058271,1714510239399,-516.82043218,0.0003178,2]
[325058272,1714510239408,-500.0,0.0003178,2]
[325058275,1714510239417,-168.64781487,0.0003178,2]
[325058278,1714510239426,-500.0,0.0003178,2]
[325058280,1714510239436,-500.0,0.0003178,2]
[325058283,1714510239445,-201.26376216,0.0003178,2]
[325058286,1714510239454,-500.0,0.0003178,2]
[325058289,1714510239463,-500.0,0.0003178,2]
[325058292,1714510239472,-500.0,0.0003178,2]
[325058295,1714510239481,-500.0,0.0003178,2]
[325058298,1714510239490,-500.0,0.0003178,2]
[325058301,1714510239500,-500.0,0.0003178,2]
[325058303,1714510239509,-500.0,0.0003178,2]
[325058306,1714510239518,-500.0,0.0003178,2]
[325058308,1714510239528,-500.0,0.0003178,2]
[325058311,1714510239537,-500.0,0.0003178,2]
[325058314,1714510239546,-500.0,0.0003178,2]
[325058317,1714510239556,-500.0,0.0003178,2]
[325058319,1714510239566,-500.0,0.0003178,2]
[325058321,1714510239576,-340.37131133,0.0003178,2]
[325058323,1714510239585,-500.0,0.0003178,2]
[325058325,1714510239595,-500.0,0.0003178,2]
[325058327,1714510239604,-500.0,0.0003178,2]
[325058329,1714510239613,-500.0,0.0003178,2]
[325058331,1714510239622,-500.0,0.0003178,2]
[325058333,1714510239632,-500.0,0.0003178,2]
[325058335,1714510239641,-500.0,0.0003178,2]
[325058338,1714510239651,-500.0,0.0003178,2]
[325058340,1714510239660,-500.0,0.0003178,2]
[325058342,1714510239669,-500.0,0.0003178,2]
[325058344,1714510239682,-500.0,0.0003178,2]
[325058346,1714510239691,-500.0,0.0003178,2]
[325058347,1714510239701,-500.0,0.0003178,2]
[325058350,1714510239711,-500.0,0.0003178,2]
[325058351,1714510239723,-500.0,0.0003178,2]
[325058353,1714510239732,-500.0,0.0003178,2]
[325058355,1714510239742,-500.0,0.0003178,2]
[325058357,1714510239751,-500.0,0.0003178,2]
[325058359,1714510239761,-500.0,0.0003178,2]
[325058361,1714510239775,-500.0,0.0003178,2]
[325058363,1714510239784,-500.0,0.0003178,2]
[325058366,1714510239795,-500.0,0.0003178,2]
[325058368,1714510239805,-500.0,0.0003178,2]
[325058369,1714510239814,-500.0,0.0003178,2]
[325058372,1714510239824,-500.0,0.0003178,2]
[325058373,1714510239833,-500.0,0.0003178,2]
[325058376,1714510239842,-500.0,0.0003178,2]
[325058377,1714510239852,-500.0,0.0003178,2]
[325058380,1714510239862,-500.0,0.0003178,2]
[325058381,1714510239871,-500.0,0.0003178,2]
[325058383,1714510239881,-500.0,0.0003178,2]
[325058385,1714510239890,-500.0,0.0003178,2]
[325058387,1714510239899,-433.29266876,0.0003178,2]
[325058389,1714510239908,-500.0,0.0003178,2]
[325058391,1714510239919,-500.0,0.0003178,2]
[325058393,1714510239928,-500.0,0.0003178,2]
[325058395,1714510239938,-500.0,0.0003178,2]
[325058397,1714510239948,-500.0,0.0003178,2]
[325058399,1714510239957,-500.0,0.0003178,2]
[325058401,1714510239967,-500.0,0.0003178,2]
[325058403,1714510239976,-500.0,0.0003178,2]
[325058405,1714510239985,-500.0,0.0003178,2]
[325058407,1714510239995,-500.0,0.0003178,2]
[325058409,1714510240004,-500.0,0.0003178,2]
[325058411,1714510240014,-500.0,0.0003178,2]
[325058413,1714510240023,-500.0,0.0003178,2]
[325058415,1714510240033,-500.0,0.0003178,2]
[325058417,1714510240043,-500.0,0.0003178,2]
[325058419,1714510240053,-500.0,0.0003178,2]
[325058421,1714510240061,-500.0,0.0003178,2]
[325058423,1714510240071,-500.0,0.0003178,2]
[325058425,1714510240080,-703.06,0.0003178,2]
[325058427,1714510240089,-500.0,0.0003178,2]
[325058429,1714510240098,-500.0,0.0003178,2]
[325058431,1714510240108,-500.0,0.0003178,2]
[325058433,1714510240118,-300.0,0.0003178,2]
[325058435,1714510240127,-500.0,0.0003178,2]
[325058437,1714510240137,-500.0,0.0003178,2]
[325058439,1714510240146,-257.17433101,0.0003178,2]
[325058441,1714510240156,-500.0,0.0003178,2]
[325058443,1714510240166,-500.0,0.0003178,2]
[325058445,1714510240176,-500.0,0.0003178,2]
[325058447,1714510240185,-500.0,0.0003178,2]
[325058449,1714510240194,-500.0,0.0003178,2]
[325058451,1714510240203,-500.0,0.0003178,2]
[325058453,1714510240212,-500.0,0.0003178,2]
[325058455,1714510240222,-500.0,0.0003178,2]
[325058457,1714510240231,-500.0,0.0003178,2]
[325058459,1714510240240,-500.0,0.0003178,2]
[325058461,1714510240249,-500.0,0.0003178,2]
[325058463,1714510240259,-500.0,0.0003178,2]
[325058465,1714510240268,-500.0,0.0003178,2]
[325058467,1714510240277,-500.0,0.0003178,2]
[325058470,1714510240286,-500.0,0.0003178,2]
[325058473,1714510240295,-720.82,0.0003178,2]
[325058475,1714510240304,-500.0,0.0003178,2]
[325058478,1714510240314,-500.0,0.0003178,2]
[325058480,1714510240325,-500.0,0.0003178,2]
[325058481,1714510240334,-500.0,0.0003178,2]
[325058483,1714510240344,-500.0,0.0003178,2]
[325058486,1714510240353,-500.0,0.0003178,2]
[325058488,1714510240362,-500.0,0.0003178,2]
[325058489,1714510240372,-500.0,0.0003178,2]
[325058492,1714510240381,-171.57381028,0.0003178,2]
[325058494,1714510240391,-500.0,0.0003178,2]
[325058495,1714510240400,-500.0,0.00031799,2]
[325058498,1714510240409,-500.0,0.00031799,2]
[325058499,1714510240418,-358.98357503,0.00031817,2]
[325058502,1714510240428,-5000.0,0.00032,4]
[325058504,1714510240438,-638.81553849,0.00032,4]
[325058505,1714510240447,-500.0,0.00032052,2]
[325058508,1714510240456,-500.0,0.00032052,2]
[325058510,1714510240465,-500.0,0.00032053,2]
[325058512,1714510240475,-500.63824826,0.00032053,2]
[325058514,1714510240484,-387.48202981,0.00032053,2]
[325058516,1714510240493,-500.0,0.00032053,2]
[325058517,1714510240502,-500.0,0.00032053,2]
[325058519,1714510240511,-500.0,0.00032054,2]
[325058522,1714510240521,-500.0,0.00032054,2]
[325058524,1714510240531,-500.0,0.00032054,2]
[325058525,1714510240540,-500.0,0.00032054,2]
[325058527,1714510240549,-500.0,0.00032054,2]
[325058530,1714510240559,-500.0,0.00032054,2]
[325058532,1714510240569,-500.0,0.00032054,2]
[325058533,1714510240582,-500.0,0.00032054,2]
[325058536,1714510240591,-500.0,0.00032054,2]
[325058538,1714510240601,-502.41483296,0.00032054,2]
[325058540,1714510240611,-500.0,0.00032054,2]
[325058542,1714510240620,-179.21676421,0.00032054,2]
[325058544,1714510240629,-500.0,0.00032054,2]
[325058545,1714510240638,-500.0,0.00032054,2]
[325058547,1714510240647,-500.0,0.00032054,2]
[325058549,1714510240656,-500.0,0.00032054,2]
[325058551,1714510240666,-500.0,0.00032054,2]
[325058553,1714510240675,-500.0,0.00032054,2]
[325058556,1714510240686,-500.0,0.00032054,2]
[325058557,1714510240697,-500.0,0.00032054,2]
[325058560,1714510240707,-502.14851973,0.00032054,2]
[325058561,1714510240716,-500.0,0.00032054,2]
[325058563,1714510240725,-500.0,0.00032054,2]
[325058565,1714510240734,-500.0,0.00032054,2]
[325058567,1714510240744,-500.0,0.00032054,2]
[325058569,1714510240753,-500.0,0.00032054,2]
[325058571,1714510240762,-500.0,0.00032054,2]
[325058573,1714510240772,-500.0,0.00032054,2]
[325058575,1714510240783,-500.0,0.00032054,2]
[325058577,1714510240792,-500.0,0.00032054,2]
[325058579,1714510240801,-500.0,0.00032054,2]
[325058581,1714510240810,-500.0,0.00032054,2]
[325058583,1714510240819,-500.0,0.00032054,2]
[325058585,1714510240831,-500.0,0.00032054,2]
[325058587,1714510240840,-500.0,0.00032054,2]
[325058589,1714510240850,-500.0,0.00032054,2]
[325058590,1714510240860,-500.0,0.00032054,2]
[325058593,1714510240870,-500.0,0.00032054,2]
[325058594,1714510240879,-500.0,0.00032054,2]
[325058597,1714510240888,-500.0,0.00032054,2]
[325058599,1714510240898,-500.0,0.00032054,2]
[325058601,1714510240907,-500.0,0.00032054,2]
[325058603,1714510240917,-500.0,0.00032054,2]
[325058604,1714510240927,-500.0,0.00032054,2]
[325058606,1714510240936,-500.0,0.00032054,2]
[325058608,1714510240946,-500.0,0.00032054,2]
[325058610,1714510240956,-500.0,0.00032054,2]
[325058612,1714510240965,-500.0,0.00032054,2]
[325058614,1714510240974,-500.0,0.00032054,2]
[325058616,1714510240982,-500.0,0.00032054,2]
[325058618,1714510240992,-170.62705614,0.00032054,2]
[325058620,1714510241002,-500.0,0.00032054,2]
[325058622,1714510241011,-500.0,0.00032054,2]
[325058624,1714510241020,-500.0,0.00032054,2]
[325058626,1714510241030,-500.0,0.00032054,2]
[325058628,1714510241040,-500.0,0.00032054,2]
[325058630,1714510241049,-500.0,0.00032054,2]
[325058632,1714510241058,-500.0,0.00032054,2]
[325058634,1714510241068,-500.0,0.00032054,2]
[325058636,1714510241078,-500.0,0.00032054,2]
[325058638,1714510241087,-500.0,0.00032054,2]
[325058639,1714510241096,-500.0,0.00032054,2]
[325058640,1714510241106,-500.0,0.00032054,2]
[325058642,1714510241115,-500.0,0.00032054,2]
[325058644,1714510241124,-491.31569532,0.00032054,2]
[325058646,1714510241134,-500.0,0.00032054,2]
[325058648,1714510241143,-500.0,0.00032054,2]
[325058649,1714510241152,-500.0,0.00032054,2]
[325058652,1714510241162,-500.0,0.00032054,2]
[325058654,1714510241171,-500.0,0.00032054,2]
[325058656,1714510241179,-500.0,0.00032054,2]